[Event "Late-Titled-Tuesday-Blitz-September-26-2023"]
[Site "Chess.com"]
[Date "2023.09.26"]
[Round "2"]
[White "LeninGuerra"]
[Black "Zhigalko_Sergei"]
[Result "0-1"]
[WhiteElo "2561"]
[BlackElo "2879"]
[TimeControl "180+1"]
[EndTime "14:19:04 PDT"]
[Termination "Zhigalko_Sergei won on time"]

1. e4 {[%clk 0:03:00.9]} 1... c5 {[%clk 0:02:59.8]} 2. Nf3 {[%clk 0:03:00.2]}
2... Nc6 {[%clk 0:03:00.4]} 3. d4 {[%clk 0:02:58.8]} 3... cxd4 {[%clk
0:03:01.3]} 4. Nxd4 {[%clk 0:02:59]} 4... Nf6 {[%clk 0:03:01.9]} 5. Nc3 {[%clk
0:02:57.5]} 5... e5 {[%clk 0:03:02.1]} 6. Ndb5 {[%clk 0:02:56.9]} 6... d6 {[%clk
0:03:01.6]} 7. Nd5 {[%clk 0:02:44.9]} 7... Nxd5 {[%clk 0:03:00.6]} 8. exd5
{[%clk 0:02:44.9]} 8... Nb8 {[%clk 0:02:59.9]} 9. c4 {[%clk 0:02:45]} 9... Be7
{[%clk 0:02:59.9]} 10. Be3 {[%clk 0:02:43.1]} 10... O-O {[%clk 0:02:59.7]} 11.
Be2 {[%clk 0:02:38.2]} 11... Nd7 {[%clk 0:02:58.5]} 12. O-O {[%clk 0:02:36.8]}
12... a6 {[%clk 0:02:58.9]} 13. Nc3 {[%clk 0:02:35.4]} 13... f5 {[%clk
0:02:59.6]} 14. f4 {[%clk 0:02:33.6]} 14... Bf6 {[%clk 0:02:54.2]} 15. Rc1
{[%clk 0:02:32.4]} 15... exf4 {[%clk 0:02:54.5]} 16. Bxf4 {[%clk 0:02:25.5]}
16... Ne5 {[%clk 0:02:55.1]} 17. b3 {[%clk 0:02:20]} 17... Bd7 {[%clk 0:02:55]}
18. Kh1 {[%clk 0:02:16.6]} 18... Rc8 {[%clk 0:02:53.8]} 19. a4 {[%clk
0:02:01.8]} 19... Re8 {[%clk 0:02:51]} 20. Bd3 {[%clk 0:01:45.8]} 20... g6
{[%clk 0:02:48.8]} 21. Ne2 {[%clk 0:01:41.5]} 21... Ng4 {[%clk 0:02:42.3]} 22.
h3 {[%clk 0:01:25.2]} 22... Ne3 {[%clk 0:02:35.5]} 23. Bxe3 {[%clk 0:01:25.6]}
23... Rxe3 {[%clk 0:02:36.4]} 24. Nf4 {[%clk 0:01:25.5]} 24... Qb6 {[%clk
0:02:21.1]} 25. Bc2 {[%clk 0:01:03.5]} 25... Rce8 {[%clk 0:02:17.2]} 26. Rf3
{[%clk 0:00:58.2]} 26... Bg5 {[%clk 0:02:04.9]} 27. Rb1 {[%clk 0:00:36.9]} 27...
Qb4 {[%clk 0:01:33.8]} 28. Ne6 {[%clk 0:00:32.3]} 28... Bxe6 {[%clk 0:01:04.5]}
29. dxe6 {[%clk 0:00:33.2]} 29... R3xe6 {[%clk 0:01:02]} 30. Qd5 {[%clk
0:00:32.7]} 30... Kg7 {[%clk 0:01:00.1]} 31. Rbf1 {[%clk 0:00:31.2]} 31... Re5
{[%clk 0:00:54.9]} 32. Qd3 {[%clk 0:00:29.5]} 32... Qc5 {[%clk 0:00:44.7]} 33.
g4 {[%clk 0:00:27.5]} 33... Re3 {[%clk 0:00:41]} 34. Qd5 {[%clk 0:00:24.2]}
34... Qxd5 {[%clk 0:00:23]} 35. cxd5 {[%clk 0:00:25.1]} 35... f4 {[%clk
0:00:18.9]} 36. h4 {[%clk 0:00:20.6]} 36... Rxf3 {[%clk 0:00:09.3]} 37. Rxf3
{[%clk 0:00:19.8]} 37... Bxh4 {[%clk 0:00:08.7]} 38. Rxf4 {[%clk 0:00:16.3]}
38... Re1+ {[%clk 0:00:07.9]} 39. Kg2 {[%clk 0:00:16.5]} 39... Re2+ {[%clk
0:00:08.5]} 40. Kh3 {[%clk 0:00:17]} 40... Bf6 {[%clk 0:00:08.8]} 41. Rc4 {[%clk
0:00:16.1]} 41... Kh6 {[%clk 0:00:03.3]} 42. Kg3 {[%clk 0:00:16]} 42... Be5+
{[%clk 0:00:03]} 43. Kf3 {[%clk 0:00:16.2]} 43... Rd2 {[%clk 0:00:03.3]} 44. Be4
{[%clk 0:00:14.5]} 44... Rb2 {[%clk 0:00:03.2]} 45. Bc2 {[%clk 0:00:13]} 45...
Kg5 {[%clk 0:00:02.5]} 46. Ke2 {[%clk 0:00:12]} 46... b5 {[%clk 0:00:02.9]} 47.
axb5 {[%clk 0:00:11.3]} 47... axb5 {[%clk 0:00:03.8]} 48. Rc6 {[%clk 0:00:11.6]}
48... Kxg4 {[%clk 0:00:03.6]} 49. Kd1 {[%clk 0:00:11.5]} 49... b4 {[%clk
0:00:03.7]} 50. Kc1 {[%clk 0:00:10.9]} 50... Ra2 {[%clk 0:00:03.9]} 51. Rc7
{[%clk 0:00:11.4]} 51... Ra1+ {[%clk 0:00:04.1]} 52. Bb1 {[%clk 0:00:10.9]}
52... h5 {[%clk 0:00:04]} 53. Kc2 {[%clk 0:00:07.2]} 53... g5 {[%clk 0:00:03.8]}
54. Rf7 {[%clk 0:00:06.1]} 54... h4 {[%clk 0:00:03.7]} 55. Kc1 {[%clk
0:00:05.1]} 55... Bf4+ {[%clk 0:00:03.2]} 56. Kb2 {[%clk 0:00:04.2]} 56... Ra5
{[%clk 0:00:03.5]} 57. Bf5+ {[%clk 0:00:02.8]} 57... Kg3 {[%clk 0:00:04.1]} 58.
Be6 {[%clk 0:00:03.5]} 58... h3 {[%clk 0:00:04.5]} 59. Kc2 {[%clk 0:00:03.9]}
59... h2 {[%clk 0:00:04.9]} 60. Rh7 {[%clk 0:00:04.5]} 60... Ra1 {[%clk
0:00:04.6]} 61. Rh3+ {[%clk 0:00:03.8]} 61... Kg2 {[%clk 0:00:05.2]} 0-1

[Event "Late-Titled-Tuesday-Blitz-September-26-2023"]
[Site "Chess.com"]
[Date "2023.09.26"]
[Round "2"]
[White "GianmarcoVaR"]
[Black "Beca95"]
[Result "0-1"]
[WhiteElo "2593"]
[BlackElo "2936"]
[TimeControl "180+1"]
[EndTime "14:19:18 PDT"]
[Termination "Beca95 won by checkmate"]

1. e4 {[%clk 0:02:59.5]} 1... c5 {[%clk 0:02:59.8]} 2. Nf3 {[%clk 0:03:00]} 2...
e6 {[%clk 0:03:00.1]} 3. c3 {[%clk 0:02:59.8]} 3... d5 {[%clk 0:02:59]} 4. e5
{[%clk 0:03:00]} 4... d4 {[%clk 0:02:57.7]} 5. g3 {[%clk 0:03:00.2]} 5... Ne7
{[%clk 0:02:56.3]} 6. Bg2 {[%clk 0:03:00.9]} 6... Nbc6 {[%clk 0:02:55.7]} 7. O-O
{[%clk 0:03:01.6]} 7... Nd5 {[%clk 0:02:42.8]} 8. Re1 {[%clk 0:03:02]} 8... Be7
{[%clk 0:02:42]} 9. Na3 {[%clk 0:03:02.4]} 9... b6 {[%clk 0:02:40]} 10. cxd4
{[%clk 0:03:00.8]} 10... cxd4 {[%clk 0:02:37.6]} 11. Nb5 {[%clk 0:02:56.1]}
11... O-O {[%clk 0:02:29.2]} 12. Nbxd4 {[%clk 0:02:52.7]} 12... Nxd4 {[%clk
0:02:29.5]} 13. Nxd4 {[%clk 0:02:53.6]} 13... Bb7 {[%clk 0:02:29.2]} 14. Nb3
{[%clk 0:02:50.4]} 14... a5 {[%clk 0:02:26.9]} 15. d4 {[%clk 0:02:50]} 15... a4
{[%clk 0:02:26.3]} 16. Nd2 {[%clk 0:02:50.7]} 16... Bb4 {[%clk 0:02:21.9]} 17.
a3 {[%clk 0:02:46.3]} 17... Ba5 {[%clk 0:02:21.7]} 18. Re2 {[%clk 0:02:34]}
18... Bxd2 {[%clk 0:02:21.2]} 19. Bxd2 {[%clk 0:02:32.9]} 19... Qd7 {[%clk
0:02:21.7]} 20. Rc1 {[%clk 0:02:24.4]} 20... Rfc8 {[%clk 0:02:21.4]} 21. Be1
{[%clk 0:02:24.9]} 21... Ne7 {[%clk 0:02:20]} 22. Rxc8+ {[%clk 0:02:15.7]} 22...
Rxc8 {[%clk 0:02:18.2]} 23. Bxb7 {[%clk 0:02:09.3]} 23... Qxb7 {[%clk
0:02:19.1]} 24. Qxa4 {[%clk 0:02:09.4]} 24... Qc7 {[%clk 0:02:15.8]} 25. Bc3
{[%clk 0:01:51.6]} 25... Nd5 {[%clk 0:02:14.2]} 26. Rc2 {[%clk 0:01:39.1]} 26...
h6 {[%clk 0:02:11.7]} 27. h3 {[%clk 0:01:35.6]} 27... Qb7 {[%clk 0:02:10.2]} 28.
Bd2 {[%clk 0:01:33.8]} 28... Ra8 {[%clk 0:02:04.1]} 29. Qc6 {[%clk 0:01:33.3]}
29... Qa6 {[%clk 0:02:04.1]} 30. Qc4 {[%clk 0:01:33.2]} 30... Qb7 {[%clk
0:02:00.1]} 31. a4 {[%clk 0:01:32.2]} 31... Qd7 {[%clk 0:01:52]} 32. b3 {[%clk
0:01:29]} 32... Qe7 {[%clk 0:01:51.9]} 33. Qc6 {[%clk 0:01:00.3]} 33... Rd8
{[%clk 0:01:44.6]} 34. a5 {[%clk 0:01:00.7]} 34... bxa5 {[%clk 0:01:42.2]} 35.
Bxa5 {[%clk 0:01:01.3]} 35... Rb8 {[%clk 0:01:41.9]} 36. Qd6 {[%clk 0:01:01.1]}
36... Qb7 {[%clk 0:01:38.9]} 37. b4 {[%clk 0:00:52.5]} 37... Ra8 {[%clk
0:01:31.1]} 38. Qc6 {[%clk 0:00:39.3]} 38... Qa7 {[%clk 0:01:30.8]} 39. Qc5
{[%clk 0:00:39.5]} 39... Qa6 {[%clk 0:01:30.7]} 40. Qc4 {[%clk 0:00:39.6]} 40...
Qa7 {[%clk 0:01:30.8]} 41. Qc5 {[%clk 0:00:40]} 41... Qb8 {[%clk 0:01:20.4]} 42.
Kh2 {[%clk 0:00:34.7]} 42... h5 {[%clk 0:01:19.6]} 43. Qc4 {[%clk 0:00:30.5]}
43... Qa7 {[%clk 0:01:16.7]} 44. Qe2 {[%clk 0:00:29.8]} 44... h4 {[%clk
0:01:14]} 45. Rc5 {[%clk 0:00:26.5]} 45... hxg3+ {[%clk 0:01:12.5]} 46. Kxg3
{[%clk 0:00:25.3]} 46... Qe7 {[%clk 0:01:12.3]} 47. h4 {[%clk 0:00:24.3]} 47...
Qd7 {[%clk 0:01:11.6]} 48. Qb5 {[%clk 0:00:23.5]} 48... Qe7 {[%clk 0:01:10.9]}
49. Qe2 {[%clk 0:00:21.4]} 49... g6 {[%clk 0:01:03.9]} 50. Qg4 {[%clk 0:00:22]}
50... Kh7 {[%clk 0:01:00.7]} 51. Qg5 {[%clk 0:00:20.9]} 51... Qd7 {[%clk
0:00:59]} 52. h5 {[%clk 0:00:18.5]} 52... Rg8 {[%clk 0:00:58]} 53. h6 {[%clk
0:00:18.8]} 53... Qa4 {[%clk 0:00:54.7]} 54. Rxd5 {[%clk 0:00:09.4]} 54... exd5
{[%clk 0:00:55.6]} 55. Qe7 {[%clk 0:00:08.6]} 55... Qe8 {[%clk 0:00:54.3]} 56.
Qxe8 {[%clk 0:00:07.2]} 56... Rxe8 {[%clk 0:00:55.2]} 57. Bc7 {[%clk 0:00:07.1]}
57... Rc8 {[%clk 0:00:52.1]} 58. Bd6 {[%clk 0:00:06.6]} 58... Rc3+ {[%clk
0:00:51.9]} 59. f3 {[%clk 0:00:06]} 59... Kxh6 {[%clk 0:00:51]} 60. b5 {[%clk
0:00:05.3]} 60... Rb3 {[%clk 0:00:50.5]} 61. Kg4 {[%clk 0:00:03.5]} 61... Rxb5
{[%clk 0:00:49.9]} 62. Bf8+ {[%clk 0:00:04]} 62... Kh7 {[%clk 0:00:48.8]} 63.
Kg5 {[%clk 0:00:03.7]} 63... Rb3 {[%clk 0:00:43.5]} 64. f4 {[%clk 0:00:03.1]}
64... Rf3 {[%clk 0:00:42.4]} 65. Bd6 {[%clk 0:00:03.1]} 65... Kg7 {[%clk
0:00:41.6]} 66. Kg4 {[%clk 0:00:03.3]} 66... Rf1 {[%clk 0:00:41.5]} 67. Bc5
{[%clk 0:00:03.4]} 67... f5+ {[%clk 0:00:39.3]} 68. Kg3 {[%clk 0:00:02.4]} 68...
Kf7 {[%clk 0:00:38.1]} 69. Bb6 {[%clk 0:00:02.8]} 69... Ke6 {[%clk 0:00:36.3]}
70. Bc5 {[%clk 0:00:03.3]} 70... Rg1+ {[%clk 0:00:36.2]} 71. Kf2 {[%clk
0:00:03.3]} 71... Rg4 {[%clk 0:00:34.5]} 72. Kf3 {[%clk 0:00:04.2]} 72... g5
{[%clk 0:00:34]} 73. fxg5 {[%clk 0:00:04.3]} 73... Rxg5 {[%clk 0:00:34.6]} 74.
Kf4 {[%clk 0:00:04]} 74... Rg4+ {[%clk 0:00:35.1]} 75. Kf3 {[%clk 0:00:04.7]}
75... Re4 {[%clk 0:00:35.5]} 76. Bb6 {[%clk 0:00:04.7]} 76... f4 {[%clk
0:00:35.9]} 77. Bc5 {[%clk 0:00:03.9]} 77... Kf5 {[%clk 0:00:36.5]} 78. Kf2
{[%clk 0:00:04.1]} 78... Kg4 {[%clk 0:00:35]} 79. Bb6 {[%clk 0:00:03.2]} 79...
f3 {[%clk 0:00:35.1]} 80. Kf1 {[%clk 0:00:02.3]} 80... Kg3 {[%clk 0:00:30.9]}
81. Bc7 {[%clk 0:00:02.6]} 81... f2 {[%clk 0:00:30]} 82. e6+ {[%clk 0:00:02.5]}
82... Kf3 {[%clk 0:00:30.1]} 83. Bf4 {[%clk 0:00:02.3]} 83... Re1# {[%clk
0:00:29.4]} 0-1

[Event "Late-Titled-Tuesday-Blitz-September-26-2023"]
[Site "Chess.com"]
[Date "2023.09.26"]
[Round "2"]
[White "SaqoChess_Twitch"]
[Black "cukus"]
[Result "1/2-1/2"]
[WhiteElo "2640"]
[BlackElo "2383"]
[TimeControl "180+1"]
[EndTime "14:19:37 PDT"]
[Termination "Game drawn - insufficient material"]

1. d4 {[%clk 0:03:00.9]} 1... d5 {[%clk 0:02:58]} 2. c4 {[%clk 0:03:01.5]} 2...
e6 {[%clk 0:02:58.1]} 3. Nc3 {[%clk 0:03:02]} 3... a6 {[%clk 0:02:57.2]} 4. Nf3
{[%clk 0:03:01.6]} 4... dxc4 {[%clk 0:02:56.2]} 5. a4 {[%clk 0:02:59]} 5... Nc6
{[%clk 0:02:55.8]} 6. e3 {[%clk 0:02:57.3]} 6... Na5 {[%clk 0:02:55.4]} 7. Nd2
{[%clk 0:02:55]} 7... c5 {[%clk 0:02:50.2]} 8. Nxc4 {[%clk 0:02:54.9]} 8... Nxc4
{[%clk 0:02:41.1]} 9. Bxc4 {[%clk 0:02:49.3]} 9... Nf6 {[%clk 0:02:37.8]} 10.
O-O {[%clk 0:02:48.8]} 10... cxd4 {[%clk 0:02:36.6]} 11. exd4 {[%clk 0:02:49.4]}
11... Be7 {[%clk 0:02:36.7]} 12. Be3 {[%clk 0:02:48.1]} 12... O-O {[%clk
0:02:36.3]} 13. h3 {[%clk 0:02:47.7]} 13... b6 {[%clk 0:02:34.5]} 14. d5 {[%clk
0:02:43]} 14... exd5 {[%clk 0:02:27]} 15. Nxd5 {[%clk 0:02:43]} 15... Nxd5
{[%clk 0:02:25.1]} 16. Bxd5 {[%clk 0:02:37.5]} 16... Ra7 {[%clk 0:02:19.3]} 17.
a5 {[%clk 0:02:36.6]} 17... Bc5 {[%clk 0:02:15.6]} 18. axb6 {[%clk 0:02:28.5]}
18... Bxb6 {[%clk 0:02:13.4]} 19. Qb3 {[%clk 0:02:21.9]} 19... Bxe3 {[%clk
0:02:02.3]} 20. fxe3 {[%clk 0:02:22.8]} 20... Qe7 {[%clk 0:01:56.9]} 21. Rac1
{[%clk 0:02:10.8]} 21... Be6 {[%clk 0:01:36.9]} 22. Bxe6 {[%clk 0:02:09.5]}
22... Qxe6 {[%clk 0:01:36.4]} 23. Qxe6 {[%clk 0:02:08.9]} 23... fxe6 {[%clk
0:01:37.2]} 24. Rxf8+ {[%clk 0:02:06.9]} 24... Kxf8 {[%clk 0:01:38.1]} 25. Rc6
{[%clk 0:02:06.6]} 25... Kf7 {[%clk 0:01:33]} 26. Kf2 {[%clk 0:02:07.3]} 26...
Rb7 {[%clk 0:01:28.4]} 27. Rxa6 {[%clk 0:02:05.4]} 27... Rxb2+ {[%clk
0:01:27.5]} 28. Kf3 {[%clk 0:02:06]} 28... Rb4 {[%clk 0:01:25.4]} 29. Ra7+
{[%clk 0:02:04]} 29... Kf6 {[%clk 0:01:25]} 30. g4 {[%clk 0:02:02.6]} 30... h6
{[%clk 0:01:24]} 31. Ra1 {[%clk 0:02:00.5]} 31... Rc4 {[%clk 0:01:20.3]} 32. Ra5
{[%clk 0:01:59.2]} 32... Rb4 {[%clk 0:01:19.7]} 33. Rc5 {[%clk 0:01:59]} 33...
Ra4 {[%clk 0:01:19.1]} 34. Rc8 {[%clk 0:01:59.2]} 34... Kf7 {[%clk 0:01:15.9]}
35. Rd8 {[%clk 0:01:55.3]} 35... Rb4 {[%clk 0:01:15.3]} 36. Rd4 {[%clk
0:01:37.2]} 36... Rb1 {[%clk 0:01:06.1]} 37. h4 {[%clk 0:01:36.3]} 37... Rf1+
{[%clk 0:01:04]} 38. Ke4 {[%clk 0:01:31.6]} 38... Kf6 {[%clk 0:01:00.7]} 39. Rd8
{[%clk 0:01:28.2]} 39... Rg1 {[%clk 0:00:56.7]} 40. Kf3 {[%clk 0:01:23.9]} 40...
Rf1+ {[%clk 0:00:48.7]} 41. Kg3 {[%clk 0:01:24.1]} 41... Re1 {[%clk 0:00:46.8]}
42. Rf8+ {[%clk 0:01:24]} 42... Ke7 {[%clk 0:00:40.7]} 43. Rf3 {[%clk
0:01:24.2]} 43... Ra1 {[%clk 0:00:37.9]} 44. g5 {[%clk 0:01:23.6]} 44... Rg1+
{[%clk 0:00:24]} 45. Kf4 {[%clk 0:01:16.1]} 45... Kd6 {[%clk 0:00:21.5]} 46. e4
{[%clk 0:01:13.6]} 46... Ke7 {[%clk 0:00:15.7]} 47. Ra3 {[%clk 0:01:08.9]} 47...
Kf7 {[%clk 0:00:08.5]} 48. gxh6 {[%clk 0:00:57.2]} 48... gxh6 {[%clk 0:00:08.2]}
49. h5 {[%clk 0:00:55.9]} 49... Rg5 {[%clk 0:00:05.2]} 50. Ra7+ {[%clk
0:00:52.4]} 50... Kf6 {[%clk 0:00:05.2]} 51. Rh7 {[%clk 0:00:40.9]} 51... Rxh5
{[%clk 0:00:05.1]} 52. e5+ {[%clk 0:00:41.7]} 52... Kg6 {[%clk 0:00:03.6]} 53.
Re7 {[%clk 0:00:41.4]} 53... Rf5+ {[%clk 0:00:02.8]} 54. Ke4 {[%clk 0:00:41.2]}
54... Rf1 {[%clk 0:00:02.3]} 55. Rxe6+ {[%clk 0:00:41.9]} 55... Kf7 {[%clk
0:00:02.6]} 56. Ra6 {[%clk 0:00:42.8]} 56... Ke7 {[%clk 0:00:02.7]} 57. Rxh6
{[%clk 0:00:42.2]} 57... Re1+ {[%clk 0:00:03]} 58. Kf5 {[%clk 0:00:42.3]} 58...
Rf1+ {[%clk 0:00:03.4]} 59. Kg4 {[%clk 0:00:42.2]} 59... Re1 {[%clk 0:00:03.7]}
60. Kf4 {[%clk 0:00:42.8]} 60... Rf1+ {[%clk 0:00:04.1]} 61. Kg4 {[%clk
0:00:39.6]} 61... Re1 {[%clk 0:00:04.4]} 62. Rh5 {[%clk 0:00:40.3]} 62... Ke6
{[%clk 0:00:04.4]} 63. Kf4 {[%clk 0:00:41]} 63... Rf1+ {[%clk 0:00:04.7]} 64.
Ke4 {[%clk 0:00:41.8]} 64... Re1+ {[%clk 0:00:04.6]} 65. Kd4 {[%clk 0:00:42.6]}
65... Rd1+ {[%clk 0:00:05.1]} 66. Kc3 {[%clk 0:00:42.7]} 66... Re1 {[%clk
0:00:05.4]} 67. Rh8 {[%clk 0:00:40.1]} 67... Rxe5 {[%clk 0:00:05.2]} 68. Kd4
{[%clk 0:00:39.9]} 68... Rd5+ {[%clk 0:00:05.2]} 69. Kc4 {[%clk 0:00:40.6]}
69... Ra5 {[%clk 0:00:05.6]} 70. Rh6+ {[%clk 0:00:40.9]} 70... Kf7 {[%clk
0:00:05.2]} 71. Kb4 {[%clk 0:00:41.3]} 71... Rg5 {[%clk 0:00:04.6]} 72. Rc6
{[%clk 0:00:41.9]} 72... Kg7 {[%clk 0:00:04.7]} 73. Kc3 {[%clk 0:00:42.6]} 73...
Rd5 {[%clk 0:00:04.5]} 74. Kc4 {[%clk 0:00:42.5]} 74... Rd8 {[%clk 0:00:04.5]}
75. Rc7+ {[%clk 0:00:42.1]} 75... Kf6 {[%clk 0:00:04.4]} 76. Kc5 {[%clk
0:00:42.5]} 76... Ke5 {[%clk 0:00:04.4]} 77. Rh7 {[%clk 0:00:42.9]} 77... Kf6
{[%clk 0:00:04.4]} 78. Kc6 {[%clk 0:00:41.5]} 78... Rd1 {[%clk 0:00:03.9]} 79.
Kc7 {[%clk 0:00:42.2]} 79... Kg6 {[%clk 0:00:03.9]} 80. Rh2 {[%clk 0:00:42.6]}
80... Kg5 {[%clk 0:00:03.9]} 81. Rg2+ {[%clk 0:00:43.1]} 81... Kf4 {[%clk
0:00:04.1]} 82. Rg8 {[%clk 0:00:43]} 82... Kf5 {[%clk 0:00:04.2]} 83. Rf8+
{[%clk 0:00:42.9]} 83... Ke6 {[%clk 0:00:04.3]} 84. Re8+ {[%clk 0:00:43.6]}
84... Kf7 {[%clk 0:00:04.4]} 85. Re2 {[%clk 0:00:43.6]} 85... Kf6 {[%clk
0:00:04.5]} 86. Kc6 {[%clk 0:00:44.3]} 86... Kf5 {[%clk 0:00:04.7]} 87. Kc5
{[%clk 0:00:45.1]} 87... Kf4 {[%clk 0:00:04.9]} 88. Kc4 {[%clk 0:00:45.8]} 88...
Rd8 {[%clk 0:00:04.5]} 89. Re6 {[%clk 0:00:45.4]} 89... Kf5 {[%clk 0:00:04.6]}
90. Rc6 {[%clk 0:00:46]} 90... Ke4 {[%clk 0:00:04]} 91. Rc5 {[%clk 0:00:46.9]}
91... Rd7 {[%clk 0:00:03.7]} 92. Kb5 {[%clk 0:00:47.6]} 92... Rd8 {[%clk
0:00:03.6]} 93. Kc6 {[%clk 0:00:48.1]} 93... Rd1 {[%clk 0:00:04.1]} 94. Rc4+
{[%clk 0:00:47.9]} 94... Rd4 {[%clk 0:00:03.9]} 95. Kc5 {[%clk 0:00:47.3]} 95...
Rxc4+ {[%clk 0:00:04]} 96. Kxc4 {[%clk 0:00:48.2]} 1/2-1/2

[Event "Late-Titled-Tuesday-Blitz-September-26-2023"]
[Site "Chess.com"]
[Date "2023.09.26"]
[Round "2"]
[White "Slovak_fighter2000"]
[Black "K_alena13"]
[Result "1-0"]
[WhiteElo "2446"]
[BlackElo "2133"]
[TimeControl "180+1"]
[EndTime "14:19:41 PDT"]
[Termination "Slovak_fighter2000 won on time"]

1. e4 {[%clk 0:03:00.9]} 1... e5 {[%clk 0:02:59.3]} 2. Nf3 {[%clk 0:03:00]} 2...
Nc6 {[%clk 0:02:59.2]} 3. Nc3 {[%clk 0:02:59.4]} 3... Nf6 {[%clk 0:02:58.5]} 4.
d4 {[%clk 0:03:00]} 4... exd4 {[%clk 0:02:58]} 5. Nxd4 {[%clk 0:03:00.7]} 5...
Bb4 {[%clk 0:02:57.7]} 6. Nxc6 {[%clk 0:03:01]} 6... bxc6 {[%clk 0:02:58.1]} 7.
Bd3 {[%clk 0:03:01.5]} 7... d5 {[%clk 0:02:58.2]} 8. exd5 {[%clk 0:03:01.3]}
8... cxd5 {[%clk 0:02:58.8]} 9. O-O {[%clk 0:03:01.2]} 9... O-O {[%clk
0:02:57.5]} 10. Bg5 {[%clk 0:03:00.6]} 10... Be7 {[%clk 0:02:53.6]} 11. h3
{[%clk 0:02:59]} 11... h6 {[%clk 0:02:50.8]} 12. Bf4 {[%clk 0:02:54.3]} 12...
Be6 {[%clk 0:02:48.1]} 13. Qf3 {[%clk 0:02:53.6]} 13... c6 {[%clk 0:02:42.5]}
14. Rad1 {[%clk 0:02:54]} 14... Qb6 {[%clk 0:02:27.4]} 15. b3 {[%clk 0:02:52.9]}
15... Rae8 {[%clk 0:02:14.7]} 16. Rfe1 {[%clk 0:02:52.1]} 16... Qa5 {[%clk
0:02:05.4]} 17. Be5 {[%clk 0:02:32.4]} 17... Nd7 {[%clk 0:01:47]} 18. Na4 {[%clk
0:02:21.9]} 18... Nxe5 {[%clk 0:01:40.8]} 19. Rxe5 {[%clk 0:02:21]} 19... Qc7
{[%clk 0:01:33.6]} 20. Rde1 {[%clk 0:02:17.7]} 20... Bf6 {[%clk 0:01:20.3]} 21.
R5e2 {[%clk 0:02:15.7]} 21... Qd6 {[%clk 0:01:16.6]} 22. Bf5 {[%clk 0:02:11.9]}
22... Bd7 {[%clk 0:01:05.4]} 23. Bxd7 {[%clk 0:02:07]} 23... Qxd7 {[%clk
0:01:05.2]} 24. Nc5 {[%clk 0:02:07.2]} 24... Qc8 {[%clk 0:01:02.6]} 25. Nd3
{[%clk 0:01:47.1]} 25... Re6 {[%clk 0:00:49.3]} 26. Nf4 {[%clk 0:01:41.9]} 26...
Rxe2 {[%clk 0:00:46]} 27. Rxe2 {[%clk 0:01:42.8]} 27... Re8 {[%clk 0:00:45.2]}
28. Nd3 {[%clk 0:01:36.3]} 28... Bd4 {[%clk 0:00:35.8]} 29. g4 {[%clk 0:01:11]}
29... Qd8 {[%clk 0:00:28.3]} 30. Kg2 {[%clk 0:01:10]} 30... Kf8 {[%clk
0:00:27.1]} 31. Nf4 {[%clk 0:01:05.2]} 31... Rxe2 {[%clk 0:00:21.1]} 32. Nxe2
{[%clk 0:01:01.5]} 32... Bb6 {[%clk 0:00:19.5]} 33. Nf4 {[%clk 0:01:00.8]} 33...
Qf6 {[%clk 0:00:18.8]} 34. Nd3 {[%clk 0:00:55.6]} 34... Qe6 {[%clk 0:00:17.2]}
35. Qf4 {[%clk 0:00:48.3]} 35... Kg8 {[%clk 0:00:15.6]} 36. Qe5 {[%clk
0:00:42.6]} 36... Qxe5 {[%clk 0:00:12]} 37. Nxe5 {[%clk 0:00:43.5]} 37... c5
{[%clk 0:00:12.3]} 38. c4 {[%clk 0:00:40.1]} 38... f6 {[%clk 0:00:10.8]} 39. Nd3
{[%clk 0:00:38.7]} 39... dxc4 {[%clk 0:00:08.1]} 40. bxc4 {[%clk 0:00:38.3]}
40... Kf7 {[%clk 0:00:08.8]} 41. Kf3 {[%clk 0:00:38.1]} 41... Ke6 {[%clk
0:00:09]} 42. Ke4 {[%clk 0:00:38.4]} 42... g5 {[%clk 0:00:06.9]} 43. f4 {[%clk
0:00:37.1]} 43... a6 {[%clk 0:00:05.9]} 44. f5+ {[%clk 0:00:35.8]} 44... Kd6
{[%clk 0:00:05.5]} 45. Nc1 {[%clk 0:00:33.8]} 45... Ba5 {[%clk 0:00:04.9]} 46.
Ne2 {[%clk 0:00:29.3]} 46... Bb6 {[%clk 0:00:04.1]} 47. Nc3 {[%clk 0:00:28.2]}
47... Bd8 {[%clk 0:00:04]} 48. Nd5 {[%clk 0:00:28.7]} 48... Kc6 {[%clk
0:00:03.7]} 49. Ne3 {[%clk 0:00:22.1]} 49... Kd6 {[%clk 0:00:03.9]} 50. Nf1
{[%clk 0:00:22.4]} 50... Kc6 {[%clk 0:00:04.2]} 51. Ng3 {[%clk 0:00:21.5]} 51...
Kd6 {[%clk 0:00:04.4]} 52. Nh5 {[%clk 0:00:19.3]} 52... Kc6 {[%clk 0:00:04.6]}
53. Ng7 {[%clk 0:00:19.5]} 53... Be7 {[%clk 0:00:05]} 54. Ne6 {[%clk 0:00:19.6]}
54... Kd6 {[%clk 0:00:04.5]} 55. a3 {[%clk 0:00:17.4]} 55... Kc6 {[%clk
0:00:04.3]} 56. Ng7 {[%clk 0:00:16.6]} 56... Kd6 {[%clk 0:00:04.4]} 57. Nh5
{[%clk 0:00:17]} 57... Kc6 {[%clk 0:00:04.2]} 58. Ng3 {[%clk 0:00:16.8]} 58...
Kd6 {[%clk 0:00:04.6]} 59. Ne2 {[%clk 0:00:16.4]} 59... Kc6 {[%clk 0:00:05]} 60.
Nc1 {[%clk 0:00:16]} 60... Bd8 {[%clk 0:00:05.1]} 61. Nd3 {[%clk 0:00:16.3]}
61... Kd6 {[%clk 0:00:04.8]} 62. Kf3 {[%clk 0:00:15.8]} 62... Be7 {[%clk
0:00:04.8]} 63. Ke2 {[%clk 0:00:15.5]} 63... Kc6 {[%clk 0:00:04.6]} 64. Kd1
{[%clk 0:00:15]} 64... Kd6 {[%clk 0:00:04.9]} 65. Kc2 {[%clk 0:00:14.9]} 65...
Kc6 {[%clk 0:00:05]} 66. Kb3 {[%clk 0:00:15.4]} 66... Kb6 {[%clk 0:00:05.2]} 67.
Ka4 {[%clk 0:00:14]} 67... Bd6 {[%clk 0:00:05.1]} 68. Nf2 {[%clk 0:00:13.6]}
68... Be7 {[%clk 0:00:05.3]} 69. Ne4 {[%clk 0:00:13.7]} 69... Bd8 {[%clk
0:00:03.9]} 70. Nc3 {[%clk 0:00:14.1]} 70... Kc6 {[%clk 0:00:02.7]} 71. Nd5
{[%clk 0:00:14.2]} 71... Kd6 {[%clk 0:00:02.7]} 72. Kb3 {[%clk 0:00:05.4]} 72...
Ke5 {[%clk 0:00:03]} 73. Kc3 {[%clk 0:00:03.8]} 73... Ke4 {[%clk 0:00:02.9]} 74.
a4 {[%clk 0:00:01.5]} 74... Kf3 {[%clk 0:00:02.3]} 75. Kd3 {[%clk 0:00:01.9]}
75... Kg3 {[%clk 0:00:02.6]} 76. Ke3 {[%clk 0:00:02.4]} 76... Kxh3 {[%clk
0:00:02.1]} 77. Kf3 {[%clk 0:00:03]} 77... Kh4 {[%clk 0:00:02.3]} 78. Ne3 {[%clk
0:00:02.5]} 78... Kh3 {[%clk 0:00:02.3]} 79. Ng2 {[%clk 0:00:01.4]} 79... Bc7
{[%clk 0:00:02.2]} 80. Ne3 {[%clk 0:00:01.8]} 80... Bd8 {[%clk 0:00:02.2]} 81.
Nd5 {[%clk 0:00:02.3]} 1-0